fUSD/lending_fUSD_20260203
["ID","MTS","AMOUNT","RATE_DAILY","PERIOD"]
[404447003,1770148243800,-4443.991127,0.00014515,7]
[404447004,1770148243810,-4980.740018,0.00014515,7]
[404447005,1770148243819,-200.0,0.00014601,2]
[404447006,1770148243829,-187.78006525,0.00014601,2]
[404447007,1770148243840,-151.0,0.00014634,2]
[404447008,1770148243850,-334.5472959,0.00014874,2]
[404447009,1770148243859,-285.87896122,0.000149,2]
[404447010,1770148243868,-150.01111538,0.00014958,2]
[404447011,1770148243878,-250.0,0.00015,2]
[404447012,1770148243887,-379.28,0.0001503,2]
[404447013,1770148243899,-5709.02,0.00015068,2]
[404447014,1770148243909,-200.0,0.00015149,2]
[404447015,1770148243918,-194.72792766,0.00015149,2]
[404447016,1770148243928,-500.0,0.00015288,2]
[404447017,1770148243937,-13061.31188108,0.00015371,2]
[404447018,1770148243947,-6480.91079444,0.00015384,2]
[404447019,1770148243957,-200.0,0.00015697,2]
[404447020,1770148243966,-201.93286099,0.00015697,2]
[404447021,1770148243976,-5709.02,0.00015753,2]
[404447022,1770148243985,-500.0,0.00015824,2]
[404447023,1770148243994,-5602.25,0.00015828,2]
[404447024,1770148244003,-9000.0,0.000159,5]
[404447025,1770148244014,-5000.0,0.0001596,2]
[404447026,1770148244024,-316.49289447,0.00016,2]
[404447027,1770148244034,-2000.0,0.00016,2]
[404447028,1770148244044,-200.0,0.00016029,2]
[404447029,1770148244054,-4438.32,0.00016116,2]
[404447030,1770148244064,-346.92554585,0.00016243,2]
[404447031,1770148244074,-200.0,0.00016245,2]
[404447032,1770148244086,-209.40437684,0.00016245,2]
[404447033,1770148244096,-839.0,0.000164,2]
[404447034,1770148244105,-200.0,0.00016438,2]
[404447035,1770148244115,-200.0,0.00016438,3]
[404447036,1770148244125,-200.0,0.00016438,4]
[404447037,1770148244134,-200.0,0.00016438,5]
[404447038,1770148244144,-200.0,0.00016438,6]
[404447039,1770148244154,-200.0,0.00016438,7]
[404447040,1770148244163,-200.0,0.00016438,8]
[404447041,1770148244172,-200.0,0.00016438,9]
[404447042,1770148244182,-200.0,0.00016438,10]
[404447043,1770148244191,-200.0,0.00016438,11]
[404447044,1770148244202,-200.0,0.00016438,12]
[404447045,1770148244211,-200.0,0.00016438,13]
[404447046,1770148244220,-200.0,0.00016438,14]
[404447047,1770148244229,-347.38207191,0.00016438,15]
[404447048,1770148244239,-500.0,0.00016438,2]
[404447049,1770148244248,-571.15632912,0.00016438,2]
[404447050,1770148244257,-5709.02,0.00016438,2]
[404447051,1770148244268,-180.4108127,0.00016464,2]
[404447052,1770148244277,-379.28,0.00016475,2]
[404447053,1770148244293,-13061.31188108,0.00016635,2]
[404447054,1770148244307,-6480.91079444,0.00016642,2]
[404447055,1770148244324,-1000.0,0.00016669,7]
[404447056,1770148244340,-839.0,0.0001672,2]
[404447057,1770148244353,-260.20893212,0.0001673,2]
[404447058,1770148244366,-500.0,0.0001673,2]
[404447059,1770148244380,-500.0,0.0001673,2]
[404447060,1770148244394,-349.39414213,0.0001673,2]
[404447061,1770148244407,-500.0,0.0001673,2]
[404447062,1770148244422,-500.0,0.0001673,2]
[404447063,1770148244436,-500.0,0.0001673,2]
[404447064,1770148244449,-500.0,0.0001673,2]
[404447065,1770148244462,-500.0,0.0001673,2]
[404447066,1770148244472,-200.0,0.00016793,2]
[404447067,1770148244485,-217.15233878,0.00016793,2]
[404447068,1770148244498,-2000.0,0.00017,2]
[404447069,1770148244511,-300.0,0.00017,2]
[404447070,1770148244524,-160.0,0.00017,7]
[404447071,1770148244537,-839.0,0.0001704,2]
[404447072,1770148244549,-5888.0,0.00017147,2]
[404447073,1770148244564,-21378.083409,0.00017154,7]
[404447074,1770148244577,-3454.08161478,0.00017156,2]
[404447075,1770148244592,-4673.493,0.00017156,2]
[404447076,1770148244605,-5268.0,0.000172,2]
[404447077,1770148244618,-5268.0,0.00017216,2]
[404447078,1770148244631,-1000.0,0.0001726,2]
[404447079,1770148244644,-1000.0,0.00017278,2]
[404447080,1770148244656,-247.80555787,0.00017278,2]
[404447081,1770148244668,-1000.0,0.00017278,2]
[404447082,1770148244680,-500.0,0.00017278,2]
[404447083,1770148244696,-500.0,0.00017278,2]
[404447084,1770148244709,-1000.0,0.00017278,2]
[404447085,1770148244721,-200.0,0.00017313,2]
[404447086,1770148244735,-500.0,0.00017315,2]
[404447087,1770148244745,-5268.0,0.00017315,2]
[404447088,1770148244756,-200.0,0.00017341,2]
[404447089,1770148244768,-225.18697532,0.00017341,2]
[404447090,1770148244783,-163.0,0.0001736,2]
[404447091,1770148244795,-316.0,0.0001736,2]
[404447092,1770148244806,-5268.0,0.0001739,2]
[404447093,1770148244817,-200.0,0.00017395,2]
[404447094,1770148244827,-839.0,0.00017454,2]
[404447095,1770148244841,-2836.0,0.00017454,2]
[404447096,1770148244855,-2000.0,0.000175,2]
[404447097,1770148244868,-1800.0,0.000175,6]
[404447098,1770148244878,-200.0,0.00017507,2]
[404447099,1770148244889,-5268.0,0.00017514,2]
[404447100,1770148244900,-5268.0,0.00017526,2]
[404447101,1770148244911,-1000.0,0.00017534,2]
[404447102,1770148244922,-108941.79440421,0.00017566,2]
[404447103,1770148244934,-1800.0,0.000176,6]
[404447104,1770148244945,-5526.0,0.00017609,2]
[404447105,1770148244956,-359.76179104,0.00017612,2]
[404447106,1770148244968,-5526.0,0.0001763,2]
[404447107,1770148244981,-392.10693279,0.00017664,2]
[404447108,1770148244993,-2836.0,0.0001768,2]
[404447109,1770148245005,-839.0,0.0001768,2]
[404447110,1770148245018,-839.0,0.0001768,2]
[404447111,1770148245030,-1800.0,0.000177,6]
[404447112,1770148245041,-150.01111538,0.00017707,2]
[404447113,1770148245057,-1000.0,0.00017753,2]
[404447114,1770148245069,-1000.0,0.0001776,2]
[404447115,1770148245081,-983.42551089,0.00017773,2]
[404447116,1770148245095,-839.0,0.00017774,2]
[404447117,1770148245106,-839.0,0.00017774,2]
[404447118,1770148245117,-200.0,0.00017779,2]
[404447119,1770148245129,-150.0,0.00017779,2]
[404447120,1770148245141,-1000.0,0.00017779,7]
[404447121,1770148245152,-1000.0,0.00017782,2]
[404447122,1770148245163,-1000.0,0.00017784,2]
[404447123,1770148245174,-150.0,0.00017786,2]
[404447124,1770148245185,-1800.0,0.000178,6]
[404447125,1770148245197,-1000.0,0.00017801,2]
[404447126,1770148245209,-1100.0,0.00017808,7]
[404447127,1770148245220,-1000.0,0.00017808,2]
[404447128,1770148245233,-250.0,0.00017808,5]
[404447129,1770148245245,-250.0,0.00017808,5]
[404447130,1770148245257,-250.0,0.00017808,5]
[404447131,1770148245271,-250.0,0.00017808,5]
[404447132,1770148245284,-250.0,0.00017808,5]
[404447133,1770148245296,-318.936746,0.00017808,5]
[404447134,1770148245308,-1000.0,0.00017808,2]
[404447135,1770148245319,-3760.56275963,0.0001782,10]
[404447136,1770148245332,-150.0,0.0001782,2]
[404447137,1770148245345,-2000.0,0.0001782,2]
[404447138,1770148245357,-2000.0,0.0001782,2]
[404447139,1770148245369,-150.0,0.00017823,2]
[404447140,1770148245380,-369.98194845,0.00017826,2]
[404447141,1770148245391,-1500.0,0.00017826,2]
[404447142,1770148245403,-495.7739334,0.00017826,2]
[404447143,1770148245415,-150.0,0.0001784,2]
[404447144,1770148245426,-1000.0,0.00017848,2]
[404447145,1770148245437,-1000.0,0.00017849,2]
[404447146,1770148245448,-1000.0,0.00017853,2]
[404447147,1770148245460,-200.0,0.00017855,2]
[404447148,1770148245471,-200.0,0.00017856,2]
[404447149,1770148245482,-1000.0,0.00017859,2]
[404447150,1770148245494,-1000.0,0.00017861,2]
[404447151,1770148245506,-157.95285948,0.00017864,2]
[404447152,1770148245518,-150.0,0.00017865,2]
[404447153,1770148245529,-150.0,0.00017866,2]
[404447154,1770148245541,-150.0,0.00017878,2]
[404447155,1770148245553,-150.0,0.00017884,2]
[404447156,1770148245565,-200.0,0.00017889,2]
[404447157,1770148245577,-233.51889341,0.00017889,2]
[404447158,1770148245590,-25000.0,0.00017891,3]
[404447159,1770148245601,-1000.0,0.00017898,2]
[404447161,1770148245612,-93790.61614988,0.000179,2]
[404447162,1770148245624,-12478.67792849,0.000179,3]
[404447163,1770148245636,-500.0,0.000179,2]
[404447164,1770148245648,-25000.0,0.000179,3]
[404447165,1770148245660,-160.0,0.000179,3]
[404447167,1770148245671,-6480.91079444,0.000179,2]
[404447168,1770148245681,-3864.46995742,0.000179,3]
[404447169,1770148245692,-1921.0,0.000179,6]
[404447170,1770148245704,-10687.56197615,0.000179,2]
[404447171,1770148245718,-13061.31188108,0.000179,2]
[404447172,1770148245729,-376.25114709,0.000179,2]
[404447173,1770148245741,-500.0,0.000179,2]
[404447174,1770148245752,-500.0,0.000179,2]
[404447175,1770148245764,-500.0,0.000179,2]
[404447176,1770148245775,-500.0,0.000179,2]
[404447177,1770148245788,-500.0,0.000179,2]
[404447178,1770148245799,-500.0,0.000179,2]
[404447179,1770148245811,-500.0,0.000179,2]
[404447180,1770148245822,-500.0,0.000179,2]
[404447181,1770148245835,-500.0,0.000179,2]
[404447182,1770148245846,-500.0,0.000179,2]
[404447183,1770148245858,-18917.0,0.000179,2]
[404447184,1770148245869,-1000.0,0.00017916,2]
[404447185,1770148245881,-1000.0,0.00017921,2]
[404447186,1770148245891,-150.0,0.00017926,2]
[404447187,1770148245903,-1000.0,0.00017928,2]
[404447188,1770148245914,-1000.0,0.00017949,2]
[404447190,1770148245925,-416.88623134,0.0001796,2]
[404447191,1770148245937,-317.53426345,0.0001796,2]
[404447192,1770148245948,-400.7491143,0.0001797,2]
[404447193,1770148245959,-500.28724876,0.00017973,2]
[404447194,1770148245970,-179.27294312,0.00017973,4]
[404447195,1770148245981,-930.52052436,0.00017982,2]
[404447197,1770148245992,-1000.0,0.00017989,2]
[404447198,1770148246003,-252.85,0.00017989,2]
[404447199,1770148246015,-1295.1230245,0.0001799,2]
[404447200,1770148246027,-1000.0,0.00017994,2]
[404447201,1770148246039,-165939.6760896,0.00017997,2]
[404447202,1770148246050,-15338.1134338,0.00017997,2]
[404447203,1770148246061,-151.0,0.00017997,2]
[404447204,1770148246073,-155.0,0.00017999,2]
[404447205,1770148246086,-313.9472948,0.00017999,2]
[404447206,1770148246096,-300.0,0.00017999,2]
[404447207,1770148246108,-300.0,0.00017999,2]
[404447209,1770148246120,-666.0,0.00017999,2]
[404447210,1770148246132,-5973192.56614136,0.00018,2]
[404447214,1770148246795,-550.18615783,0.00018,2]
[404447215,1770148246806,-1487.29177319,0.00018,2]
[404447216,1770148246840,-988.02396852,0.00018,2]
[404447217,1770148247510,-1081.21945982,0.00017483,2]
[404447218,1770148247520,-2684.58054018,0.00018,2]
[404447219,1770148247532,-435.56147818,0.00018,2]
[404447220,1770148248233,-322.77000175,0.00018,2]
[404447221,1770148248687,1099.67445058,6.619e-05,2]
[404447259,1770149386809,-500.0,9.913e-05,3]
[404447260,1770149386830,-300.0,9.924e-05,2]
[404447261,1770149386850,-250.0,9.935e-05,2]
[404447262,1770149386870,-300.0,9.956e-05,2]
[404447263,1770149386890,-168.44144585,9.956e-05,2]
[404447264,1770149386911,-293.56275454,9.958e-05,2]
[404447265,1770149386932,-250.0,9.975e-05,2]
[404447266,1770149424809,-1103.0,0.00010001,2]
[404447267,1770149424832,-250.0,0.00010093,2]
[404447268,1770149424854,-300.0,0.00010185,2]
[404447269,1770149424876,-300.0,0.00010339,2]
[404447270,1770149424898,-300.0,0.00010339,2]
[404447271,1770149424921,-300.0,0.00010369,2]
[404447272,1770149424945,-300.0,0.00010369,2]
[404447273,1770149424969,-300.0,0.00010369,2]
[404447274,1770149424992,-495.96223362,0.0001037,2]
[404447275,1770149425015,-1308.8521814,0.0001037,2]
[404447276,1770149425039,-2308.9703912,0.0001037,2]
[404447277,1770149425064,-308.4703,0.00010428,2]
[404447278,1770149425086,-362.74069339,0.00010528,2]
[404447289,1770149432249,-740.25930661,0.00010528,2]
[404447290,1770149432261,-1000.0,0.000106,3]
[404447291,1770149432272,-1903.74206385,0.000107,3]
[404447292,1770149432302,-96.25793615,0.000107,3]
[404447293,1770149432316,-1200.0,0.000107,2]
[404447294,1770149432327,-99.4850944,0.00010702,2]
[404447295,1770149432355,-5183.54,0.00010702,2]
[404447558,1770149438397,-4716.9649056,0.00010702,2]
[404447559,1770149438411,-999.99,0.00010702,2]
[404447560,1770149438422,-150.99,0.00010702,2]
[404447561,1770149438431,-150.99,0.00010702,2]
[404447562,1770149438440,-9999.99,0.00010703,2]
[404447563,1770149438449,-299.99,0.00010703,2]
[404447564,1770149438460,-3000.0,0.000108,3]
[404447565,1770149438469,-150.26839099,0.00010801,2]
[404447566,1770149438479,-2500.0,0.00010801,2]
[404447567,1770149438489,-933.87354112,0.00010804,2]
[404447568,1770149438498,-348.07987377,0.00010804,2]
[404447569,1770149438508,-733.11630038,0.00010804,2]
[404447570,1770149438517,-250.83409806,0.00010804,2]
[404447571,1770149438527,-431.70767483,0.00010891,2]
[404447572,1770149438537,-151.0,0.00010898,2]
[404447573,1770149438546,-151.0,0.00010898,2]
[404447574,1770149438556,-4000.0,0.000109,3]
[404447575,1770149438566,-1489.77389692,0.000109,2]
[404447576,1770149438576,-500.0,0.000109,2]
[404447577,1770149438586,-179.33355735,0.000109,2]
[404447578,1770149438595,-167.96982196,0.000109,2]
[404447579,1770149438605,-580.67854171,0.000109,2]
[404447580,1770149438616,-500.0,0.000109,2]
[404447581,1770149438626,-500.0,0.000109,2]
[404447582,1770149438636,-500.0,0.000109,2]
[404447583,1770149438645,-500.0,0.000109,2]
[404447584,1770149438655,-500.0,0.000109,2]
[404447585,1770149438666,-64542.83536764,0.00010901,2]
[404447586,1770149438684,-19095.92117219,0.00010901,2]
[404447591,1770149440537,-3398.94524865,0.00010901,2]
[404447592,1770149440566,-584.84649699,0.00010901,2]
[404447593,1770149440675,-2542.23565072,0.00010901,2]
[404447594,1770149440687,-3409835.21606381,0.00010901,2]
[404447595,1770149440697,-250.0,0.00010904,2]
[404447596,1770149440706,-300.0,0.00010904,2]
[404447597,1770149440716,-150.0,0.00010959,2]
[404447598,1770149440725,-166.66,0.00010959,2]
[404447600,1770149440735,-200.0,0.00010995,2]
[404447602,1770149440744,-200.0,0.00010995,2]
[404447604,1770149440753,-500.0,0.00010995,2]
[404447606,1770149440763,-500.0,0.00010995,2]
[404447607,1770149440772,-500.0,0.00010995,2]
[404447608,1770149440781,-151.0,0.00010995,2]
[404447609,1770149440791,-500.0,0.00010995,2]
[404447610,1770149440801,-151.0,0.00010995,2]
[404447612,1770149440810,-500.0,0.00010995,2]
[404447613,1770149440820,-151.0,0.00010995,2]
[404447614,1770149440829,-500.0,0.00010995,2]
[404447615,1770149440839,-151.0,0.00010995,2]
[404447617,1770149440848,-500.0,0.00010995,2]
[404447619,1770149440857,-151.0,0.00010995,2]
[404447621,1770149440866,-151.0,0.00010995,2]
[404447623,1770149440875,-500.0,0.00010995,2]
[404447625,1770149440885,-151.0,0.00010995,2]
[404447627,1770149440894,-151.0,0.00010995,2]
[404447629,1770149440903,-500.0,0.00010995,2]
[404447631,1770149440913,-151.0,0.00010995,2]
[404447633,1770149440922,-151.0,0.00010995,2]
[404447635,1770149440931,-500.0,0.00010995,2]
[404447636,1770149440940,-151.0,0.00010995,2]
[404447637,1770149440950,-151.0,0.00010995,2]
[404447638,1770149440959,-500.0,0.00010995,2]
[404447639,1770149440969,-151.0,0.00010995,2]
[404447640,1770149440981,-151.0,0.00010995,2]
[404447641,1770149440991,-151.0,0.00010995,2]
[404447642,1770149441000,-151.0,0.00010995,2]
[404447643,1770149441009,-151.0,0.00010995,2]
[404447644,1770149441019,-151.0,0.00010995,2]
[404447645,1770149441029,-151.0,0.00010995,2]
[404447646,1770149441040,-151.0,0.00010995,2]
[404447647,1770149441051,-151.0,0.00010995,2]
[404447648,1770149441063,-151.0,0.00010995,2]
[404447649,1770149441073,-151.0,0.00010995,2]
[404447650,1770149441082,-151.0,0.00010995,2]
[404447651,1770149441092,-151.0,0.00010995,2]
[404447652,1770149441101,-151.0,0.00010995,2]
[404447653,1770149441111,-151.0,0.00010995,2]
[404447654,1770149441121,-151.0,0.00010995,2]
[404447655,1770149441131,-500.0,0.00010995,2]
[404447656,1770149441140,-151.0,0.00010995,2]
[404447657,1770149441150,-151.0,0.00010995,2]
[404447658,1770149441159,-151.0,0.00010995,2]
[404447659,1770149441169,-500.0,0.00010995,2]
[404447660,1770149441179,-500.0,0.00010995,2]
[404447661,1770149441188,-500.0,0.00010995,2]
[404447662,1770149441199,-500.0,0.00010995,2]
[404447663,1770149441209,-500.0,0.00010995,2]
[404447664,1770149441219,-500.0,0.00010995,2]
[404447665,1770149441228,-500.0,0.00010995,2]
[404447666,1770149441239,-500.0,0.00010995,2]
[404447667,1770149441249,-500.0,0.00010995,2]
[404447668,1770149441259,-500.0,0.00010995,2]
[404447669,1770149441269,-500.0,0.00010995,2]
[404447670,1770149441278,-500.0,0.00010995,2]
[404447671,1770149441287,-300.0,0.00011001,2]
[404447672,1770149441296,-195.0,0.00011001,2]
[404447673,1770149441309,-250.0,0.00011001,2]
[404447674,1770149441320,-166.66,0.00011068,2]
[404447675,1770149441329,-1103.0,0.00011082,2]
[404447676,1770149441339,-431.70767483,0.00011089,2]
[404447677,1770149441348,-6480.91079447,0.00011099,2]
[404447678,1770149441357,-166.66,0.00011178,2]
[404447679,1770149441366,-500.0,0.0001126,2]
[404447680,1770149441376,-166.66,0.00011288,2]
[404447681,1770149441385,-200.0,0.00011363,2]
[404447682,1770149441394,-166.66,0.00011397,2]
[404447683,1770149441404,-420.0,0.00011402,2]
[404447684,1770149441414,-6480.91079444,0.00011441,2]
[404447685,1770149441423,-166.66,0.00011507,2]
[404447686,1770149441433,-500.0,0.00011543,2]
[404447687,1770149441442,-1103.0,0.00011665,2]
[404447688,1770149441451,-682.78478663,0.00011698,2]
[404447689,1770149441460,-1489.77389687,0.00011818,2]
[404447690,1770149441470,-4056.65,0.00011996,2]
[404447691,1770149441479,-6480.91079444,0.00012077,2]
[404447692,1770149441488,-1103.0,0.00012279,2]
[404447693,1770149441497,-3454.08161478,0.0001237,2]
[404447694,1770149441507,-379.28,0.00012377,2]
[404447695,1770149441516,-247.41,0.00012413,2]
[404447696,1770149441526,-587.0,0.00012538,2]
[404447697,1770149441535,-6480.91079444,0.00012714,2]
[404447698,1770149441545,-1489.77389687,0.00012831,2]
[404447699,1770149441554,-1103.0,0.00012893,2]
[404447700,1770149441563,-250.0,0.00013098,2]
[404447701,1770149441573,-500.0,0.00013178,2]
[404447702,1770149441583,-10000.0,0.00013229,2]
[404447703,1770149441592,-3041.3424,0.00013229,2]
[404447704,1770149441601,-89306.5331,0.00013229,2]
[404447705,1770149441611,-2594.8629,0.00013229,2]
[404447706,1770149441620,-2395.56972984,0.00013328,2]
[404447707,1770149441630,-6480.91079444,0.00013351,2]
[404447708,1770149441640,-4673.493,0.0001337,2]
[404447709,1770149441650,-1103.0,0.00013538,2]
[404447710,1770149441660,-500.0,0.00013698,2]
[404447711,1770149441671,-234.04112718,0.00013698,2]
[404447712,1770149441681,-230.88079459,0.00013698,2]
[404447713,1770149441691,-500.0,0.00013698,2]
[404447714,1770149441700,-500.0,0.00013698,2]
[404447715,1770149441710,-500.0,0.00013698,2]
[404447716,1770149441720,-500.0,0.00013698,2]
[404447717,1770149441730,-500.0,0.00013698,2]
[404447718,1770149441739,-500.0,0.00013698,2]
[404447719,1770149441750,-500.0,0.00013698,2]
[404447720,1770149441759,-500.0,0.00013698,2]
[404447721,1770149441770,-500.0,0.00013698,2]
[404447722,1770149441779,-500.0,0.00013698,2]
[404447723,1770149441789,-500.0,0.00013698,2]
[404447724,1770149441798,-500.0,0.00013698,2]
[404447725,1770149441808,-500.0,0.00013698,2]
[404447726,1770149441818,-500.0,0.00013698,2]
[404447727,1770149441827,-500.0,0.00013698,2]
[404447728,1770149441837,-500.0,0.00013698,2]
[404447729,1770149441847,-500.0,0.00013698,2]
[404447730,1770149441857,-500.0,0.00013698,2]
[404447731,1770149441867,-500.0,0.00013698,2]
[404447732,1770149441877,-558.54304702,0.00013698,2]
[404447733,1770149441887,-500.0,0.00013698,2]
[404447734,1770149441897,-151.96294497,0.00013698,2]
[404447735,1770149441907,-500.0,0.00013698,2]
[404447736,1770149441917,-500.0,0.00013698,2]
[404447737,1770149441926,-500.0,0.00013698,2]
[404447738,1770149441935,-500.0,0.00013698,2]
[404447739,1770149441944,-500.0,0.00013698,2]
[404447740,1770149441954,-500.0,0.00013698,2]
[404447741,1770149441965,-327.84001672,0.00013698,2]
[404447742,1770149441975,-500.0,0.00013698,2]
[404447743,1770149441985,-500.0,0.00013698,2]
[404447744,1770149441995,-500.0,0.00013698,2]
[404447745,1770149442005,-500.0,0.00013698,2]
[404447746,1770149442014,-500.0,0.00013698,2]
[404447747,1770149442024,-500.0,0.00013698,2]
[404447748,1770149442038,-500.0,0.00013698,2]
[404447749,1770149442049,-438.97921379,0.00013698,2]
[404447750,1770149442062,-199.38200897,0.00013698,2]
[404447751,1770149442071,-500.0,0.00013698,2]
[404447752,1770149442080,-500.0,0.00013698,2]
[404447753,1770149442090,-500.0,0.00013698,2]
[404447754,1770149442099,-500.0,0.00013698,2]
[404447755,1770149442108,-500.0,0.00013698,2]
[404447756,1770149442119,-500.0,0.00013698,2]
[404447757,1770149442130,-500.0,0.00013698,2]
[404447758,1770149442140,-500.0,0.00013698,2]
[404447759,1770149442150,-500.0,0.00013698,2]
[404447760,1770149442159,-500.0,0.00013698,2]
[404447761,1770149442170,-452.02134495,0.00013698,2]
[404447762,1770149442179,-500.0,0.00013698,2]
[404447763,1770149442188,-500.0,0.00013698,2]
[404447764,1770149442196,-168.77902155,0.00013698,2]
[404447765,1770149442205,-500.0,0.00013698,2]
[404447766,1770149442214,-500.0,0.00013698,2]
[404447767,1770149442223,-500.0,0.00013698,2]
[404447768,1770149442232,-500.0,0.00013698,2]
[404447769,1770149442241,-500.0,0.00013698,2]
[404447770,1770149442251,-500.0,0.00013698,2]
[404447771,1770149442260,-500.0,0.00013698,2]
[404447772,1770149442269,-500.0,0.00013698,2]
[404447773,1770149442280,-500.0,0.00013698,2]
[404447774,1770149442289,-500.0,0.00013698,2]
[404447775,1770149442299,-500.0,0.00013698,2]
[404447776,1770149442309,-500.0,0.00013698,2]
[404447777,1770149442318,-500.0,0.00013698,2]
[404447778,1770149442328,-500.0,0.00013698,2]
[404447779,1770149442337,-200.0,0.00013699,2]
[404447780,1770149442347,-168.05,0.00013699,2]
[404447781,1770149442358,-9681.08,0.00013699,2]
[404447782,1770149442368,-3445.55327652,0.00013754,2]
[404447783,1770149442378,-823.0,0.00013786,2]
[404447784,1770149442387,-1489.77389687,0.00013845,2]
[404447785,1770149442397,-500.0,0.00013899,2]
[404447786,1770149442408,-5000.0,0.000139,5]
[404447787,1770149442418,-13061.31188108,0.00013966,2]
[404447788,1770149442428,-6480.91079444,0.00013987,2]
[404447789,1770149442438,-2395.56972983,0.0001409,2]
[404447790,1770149442447,-160.0,0.00014146,2]
[404447791,1770149442457,-1103.0,0.00014214,2]
[404447792,1770149442467,-2251.69087763,0.00014256,2]
[404447793,1770149442476,-500.0,0.00014263,2]
[404447794,1770149442488,-1000000.0,0.00014264,2]
[404447795,1770149442498,-933.87354112,0.00014352,2]
[404447796,1770149442508,-348.07987375,0.00014352,2]
[404447797,1770149442518,-733.11630038,0.00014352,2]
[404447798,1770149442528,-250.83409806,0.00014352,2]
[404447799,1770149442537,-446.50561278,0.00014357,2]
[404447800,1770149442547,-578.20924309,0.00014444,2]
[404447801,1770149442556,-721.12765534,0.00014444,2]
[404447802,1770149442565,-500.0,0.00014444,2]
[404447803,1770149442574,-500.0,0.00014444,2]
[404447804,1770149442583,-160.0,0.00014444,2]
[404447805,1770149442593,-200.0,0.00014444,2]
[404447806,1770149442602,-500.0,0.00014444,2]
[404447807,1770149442611,-500.0,0.00014444,2]
[404447808,1770149442620,-500.0,0.00014444,2]
[404447809,1770149442630,-500.0,0.00014444,2]
[404447810,1770149442640,-500.0,0.00014444,2]
[404447811,1770149442649,-500.0,0.00014444,2]
[404447812,1770149442658,-500.0,0.00014444,2]
[404447813,1770149442669,-500.0,0.00014444,2]
[404447814,1770149442678,-500.0,0.00014444,2]
[404447815,1770149442687,-174.61919141,0.00014444,2]
[404447816,1770149442697,-209.40437684,0.00014444,2]
[404447817,1770149442706,-500.0,0.00014444,2]
[404447818,1770149442715,-322.6107,0.00014444,2]
[404447819,1770149442725,-642.81998071,0.00014444,2]
[404447820,1770149442734,-209.40437684,0.00014444,2]
[404447821,1770149442743,-209.40437684,0.00014444,2]
[404447822,1770149442753,-217.15233878,0.00014499,2]
[404447823,1770149442762,-1294.06,0.00014504,2]
[404447824,1770149442772,-9999.99,0.00014504,2]
[404447825,1770149442782,-25962.17,0.00014504,2]
[404447826,1770149442791,-225.18697532,0.00014554,2]
[404447827,1770149442800,-233.51889341,0.00014609,2]
[404447828,1770149442810,-6480.91079444,0.00014624,2]
[404447829,1770149442819,-151.0,0.00014634,2]
[404447830,1770149442828,-242.15909246,0.00014664,2]
[404447831,1770149442838,-251.11897888,0.00014719,2]
[404447832,1770149442847,-13061.31188108,0.00014732,2]
[404447833,1770149442856,-1546.53528398,0.00014741,2]
[404447834,1770149442866,-260.4103811,0.00014774,2]
[404447835,1770149442876,-1000.0,0.00014795,2]
[404447836,1770149442885,-270.0455652,0.00014829,2]
[404447837,1770149442895,-1064.27,0.00014829,2]
[404447838,1770149442904,-2395.56972983,0.00014852,2]